Cogmind - Beta 9.4 @@@ ROGUE MODE // 2020.02.14 @ 09:25:36 Player: Hamilcar Result: Destroyed by as-25461 with Assembled Blade Performance ------------- Evolutions (0) 0 Regions Visited (2) 400 Robots Destroyed (14) 70 Value Destroyed (177) 177 Prototype IDs (2) 40 Alien Tech Used (0) 0 Bonus (0) 0 TOTAL SCORE: 687 Bonus ------- None Cogmind --------- Core Integrity 0/250 Matter 300/300 Energy 100/100 System Corruption 0% Temperature Cool (0) Movement Core (50) Location -10/Mines Parts ------- > --- POWER (1) -------- (None) > --- PROPULSION (2) --- (None) > --- UTILITY (2) ------ Seismic Analyzer > --- WEAPON (2) ------- (None) > --- INVENTORY (4) ---- Light Ion Engine Compact Wheel Peak State ------------ > --- POWER ------------ Ion Engine > --- PROPULSION ------- Aluminum Leg Aluminum Leg > --- UTILITY ---------- Improved Terrain Scanner Seismic Analyzer > --- WEAPON ----------- EM Pulse Gun Assault Rifle > --- INVENTORY -------- Light Ion Engine Wheel Compact Wheel Light Assault Rifle [Rating: 8] Favorites ----------- Power Ion Engine Engine Ion Engine Propulsion Aluminum Leg Leg Aluminum Leg Utility Seismic Analyzer Device Improved Terrain Scanner Storage Small Storage Unit Processor Seismic Analyzer Weapon EM Pulse Gun Energy Gun EM Pulse Gun Energy Cannon Beam Cannon Ballistic Gun Assault Rifle Build | -11 -10 -10 ------- Run | Scr Mat Min Slots Evolved . | . . . Power . | . . . Propulsion . | . . . Utility . | . . . Weapon . | . . . Parts Attached 10 | 8 . 2 Power 1 | 1 . . Engine 1 | 1 . . Core . | . . . Reactor . | . . . Propulsion 2 | 2 . . Treads . | . . . Leg 2 | 2 . . Wheel . | . . . Hover . | . . . Flight . | . . . Utility 3 | 3 . . Device 1 | 1 . . Storage 1 | 1 . . Processor 1 | 1 . . Hackware . | . . . Protection . | . . . Artifact . | . . . Weapon 4 | 2 . 2 Energy Gun 1 | 1 . . Energy Cannon 1 | . . 1 Ballistic Gun 2 | 1 . 1 Ballistic Cannon . | . . . Launcher . | . . . Special Weapon . | . . . Impact Weapon . | . . . Slashing Weapon . | . . . Piercing Weapon . | . . . Special Melee Weapon . | . . . Unidentified Prototypes . | . . . Parts Lost 8 | . . 8 Power 1 | . . 1 Propulsion 2 | . . 2 Utility 1 | . . 1 Weapon 4 | . . 4 Highest Loss Streak 8 | . . 8 Average Slot Usage (%) 93 | . 100 89 Engine 12 | . 14 10 Leg 26 | . 28 24 Device 12 | . 14 12 Processor 14 | . 14 14 Energy Gun 12 | . 14 10 Ballistic Gun 14 | . 14 14 Naked Turns . | . . . Heaviest Build 13 | 13 10 10 Greatest Support 20 | 20 20 20 Greatest Overweight (x) 4 | 4 . . Average Overweight (x) . | . . . Largest Inventory Capacity 6 | 6 4 4 Average Capacity 4 | 4 4 4 Most Carried 4 | 4 4 4 Average Carried 3 | 2 3 3 Final Capacity 4 | 4 4 4 Final Carried 4 | 4 4 2 Class Distribution -------------------- 100% | Mutant Dominant Class ---------------- Mutant | -10/Materials Mutant | -10/Mines Resources | -11 -10 -10 ----------- Run | Scr Mat Min Matter Collected 383 | 311 20 52 Remotely . | . . . Salvage Created 444 | 177 100 167 Parts 20 | 12 5 3 Haulers Intercepted . | . . . Recyclers Shooed 1 | 1 . . Parts Field Recycled . | . . . Retrieved Matter . | . . . Parts Self-Destructed . | . . . Prevented . | . . . Kills | -11 -10 -10 ------- Run | Scr Mat Min Combat Hostiles Destroyed 9 | . 2 7 Guns 6 | . 2 4 Cannons 3 | . . 3 Classes Destroyed 5 | 3 1 1 Worker 1 | 1 . . Tunneler 3 | 3 . . Recycler 1 | 1 . . Grunt 4 | . 2 2 Assembled 5 | . . 5 Best Kill Streak 5 | 4 2 5 Combat Bots Only 5 | . 2 5 Max Kills in Single Turn 1 | 1 1 1 Gunslinging . | . . . Exploded . | . . . Melee . | . . . Uniques/NPCs Destroyed . | . . . Combat | -11 -10 -10 -------- Run | Scr Mat Min Damage Taken 850 | . 66 784 Core 257 | . 11 246 Absorbed by Shields . | . . . Core Remaining (%) 100 | 100 . . Volleys Fired 48 | 12 5 31 Largest 2 | 2 2 2 Hottest 80 | 60 60 80 Shots Fired 84 | 24 10 50 Gun 77 | 24 10 43 Cannon 7 | . . 7 Launcher . | . . . Special . | . . . Kinetic 48 | 12 5 31 Thermal 7 | . . 7 Explosive . | . . . Electromagnetic 29 | 12 5 12 Robot Hit Streak 12 | 4 10 12 Robot Miss Streak 2 | 2 . 2 Penetration Max . | . . . Secondary Targets 1 | . . 1 Max Gunslinging Chain 1 | . . 1 Shots Hit Robots 58 | 13 10 35 Core Hits 26 | 6 4 16 Critical Hits . | . . . Critical Kills . | . . . Critical Parts Destroyed . | . . . Melee Attacks . | . . . Impact . | . . . Slashing . | . . . Piercing . | . . . Sneak Attacks . | . . . Combat Hostiles . | . . . Follow-up Attacks . | . . . Damage Inflicted 886 | 247 123 516 Guns 665 | 225 123 317 Cannons 106 | . . 106 Explosions 112 | 22 . 90 Melee . | . . . Ramming 3 | . . 3 Kinetic 349 | 92 61 196 Thermal 218 | 22 . 196 Explosive . | . . . Electromagnetic 316 | 133 62 121 Impact . | . . . Slashing . | . . . Piercing . | . . . Highest Corruption . | . . . Average Corruption . | . . . Corruption Purged . | . . . Overload Shots . | . . . Overflow Damage 23 | . . 23 Projectiles 6 | . . 6 Explosions 17 | . . 17 Melee . | . . . Knockbacks . | . . . Impact . | . . . Kinetic . | . . . Secondary . | . . . Self-Inflicted Damage 1 | . . 1 Shots . | . . . Rammed 1 | . . 1 Targets Rammed 1 | . . 1 Kicked . | . . . Crushed . | . . . Highest Temperature 225 | . 36 225 Average Temperature 84 | . 26 95 Received Heat Transfer 348 | . 36 312 Siege Activations . | . . . Robots Corrupted . | . . . Combat Hostiles . | . . . Parts Fried . | . . . Impact Corruptions . | . . . Robots Melted . | . . . Combat Hostiles . | . . . Parts Melted . | . . . Heat Transferred 322 | . . 322 Parts Sabotaged . | . . . Parts Stolen . | . . . Parts Stripped . | . . . Power Chain Reactions 2 | 1 . 1 Missiles Intercepted . | . . . Alert | -11 -10 -10 ------- Run | Scr Mat Min Peak Influence 86 | 25 56 86 Average Influence 36 | 8 40 52 Maximum Alert Level . | . . . Low Security (%) 100 | 100 100 100 Level 1 . | . . . Level 2 . | . . . Level 3 . | . . . Level 4 . | . . . Level 5 . | . . . High Security . | . . . Max Security . | . . . Squads Dispatched . | . . . Investigation . | . . . Extermination . | . . . Reinforcement . | . . . Assault . | . . . Garrison . | . . . Intercept . | . . . Construction Impeded . | . . . Haulers Reinforced . | . . . Stealth | -11 -10 -10 --------- Run | Scr Mat Min Distress Signals . | . . . Communications Jammed . | . . . Distress Signals . | . . . Times Spotted 13 | . 2 11 Peak Tracking Total 6 | . 2 6 Tactical Retreats 2 | . . 2 Traps | -11 -10 -10 ------- Run | Scr Mat Min Traps Triggered . | . . . Indirectly . | . . . Trap Hack Attempts . | . . . Triggered . | . . . Disarmed . | . . . Reprogrammed . | . . . Reused . | . . . Traps Extracted . | . . . Installed . | . . . Triggered . | . . . Machines | -11 -10 -10 ---------- Run | Scr Mat Min Machines Disabled . | . . . Max in Single Turn . | . . . Machines Sabotaged . | . . . Garrisons Compromised . | . . . Overloaded Fab Kills . | . . . Fab Network Shutdowns . | . . . Hacking | -11 -10 -10 --------- Run | Scr Mat Min Machines Accessed 1 | . 1 . Terminals 1 | . 1 . Fabricators . | . . . Repair Stations . | . . . Recycling Units . | . . . Scanalyzers . | . . . Garrison Access . | . . . Total Hacks 4 | . 4 . Successful 1 | . 1 . Failed 3 | . 3 . Catastrophic . | . . . Database Lockouts . | . . . Manual . | . . . Terminals 4 | . 4 . Fabricators . | . . . Repair Stations . | . . . Recycling Units . | . . . Scanalyzers . | . . . Garrison Access . | . . . Terminal Hacks 1 | . 1 . Prototype ID Bank 1 | . 1 . Fabricator Hacks . | . . . Repair Station Hacks . | . . . Recycling Unit Hacks . | . . . Scanalyzer . | . . . Garrison Access Hacks . | . . . Unauthorized Hacks . | . . . Terminals . | . . . Fabricators . | . . . Repair Stations . | . . . Recycling Units . | . . . Scanalyzers . | . . . Garrison Access . | . . . Data Cores Recovered . | . . . Used . | . . . Hacking Detections 1 | . 1 . Full Trace Events . | . . . Feedback Events . | . . . Feedback Blocked . | . . . Robot Schematics Acquired . | . . . Robots Built . | . . . Matter . | . . . Time . | . . . Total Robot Build Rating . | . . . Part Schematics Acquired . | . . . Parts Built . | . . . Matter . | . . . Time . | . . . Total Part Build Rating . | . . . Parts Repaired . | . . . Time . | . . . Parts Recycled . | . . . Recycled Matter . | . . . Retrieved Matter . | . . . Retrieved Components . | . . . Parts Scanalyzed . | . . . Part Schematics Acquired . | . . . Parts Damaged . | . . . Bothacking | -11 -10 -10 ------------ Run | Scr Mat Min Used RIF Installer . | . . . Robots Hacked . | . . . Non-combat . | . . . Combat . | . . . Robot Hacks Applied . | . . . Relay Couplers Released . | . . . Robots Rewired . | . . . Allies Hacked . | . . . Hacks Repelled . | . . . Allies | -11 -10 -10 -------- Run | Scr Mat Min Total Allies . | . . . Largest Group . | . . . Highest-Rated Group . | . . . Highest-Rated Ally . | . . . Total Orders . | . . . Ally Attacks . | . . . Total Damage . | . . . Kills . | . . . Allies Corrupted . | . . . Allies Melted . | . . . Intel | -11 -10 -10 ------- Run | Scr Mat Min Robot Analysis Total . | . . . Derelict Logs Recovered 1 | . . 1 Drone Launches . | . . . Drone Recoveries . | . . . Exploration | -11 -10 -10 ------------- Run | Scr Mat Min Turns Passed 542 | 155 161 226 Spaces Moved 321 | 78 121 122 Core 13 | 13 . . Treads . | . . . Legs 308 | 65 121 122 Wheels . | . . . Hover . | . . . Flight . | . . . Fastest Speed 50 | 50 120 120 Average Speed 123 | 132 120 120 Slowest Speed 250 | 250 120 120 Overloaded Moves . | . . . Propulsion Burnouts . | . . . Robots Hopped . | . . . Cave-ins Triggered . | . . . Exploration Rate (%) 25 | 6 30 40 Regions Visited 2 Branch Regions 1 Pre-discovered Areas 1 | . . 1 Known Exits Taken . | . . . Unknown Exits Taken 2 | 1 1 . Scrap Searched 1 | . . 1 Spaces Dug . | . . . Terrain Destroyed 11 | 4 . 7 Melee . | . . . Projectile . | . . . AOE 11 | 4 . 7 Actions | -11 -10 -10 --------- Run | Scr Mat Min Total 385 | 102 127 156 Wait . | . . . Move 319 | 77 120 122 Hop . | . . . Pick Up 5 | 4 1 . Fast Attach 8 | 8 . . Attach 2 | . . 2 Detach . | . . . Swap . | . . . Drop 2 | 1 1 . Fire 48 | 12 5 31 Melee . | . . . Ram 1 | . . 1 Kick . | . . . Crush . | . . . Escape Stasis . | . . . Rewire . | . . . Trap . | . . . Miscellaneous . | . . . Route ------- -11/Scrapyard -10/Materials -10/Mines History --------- Turn | Location | Event 36 | -11/Scrapyard | Discovered new exit (range 14) 156 | -11/Scrapyard | Entered Materials 305 | -10/Materials | Build established: Mutant 310 | -10/Materials | Discovered new exit (range 7) 317 | -10/Materials | Entered Mines 382 | -10/Mines | Learned location of Zion (-7) 458 | -10/Mines | Assembled infested the area 509 | -10/Mines | Core integrity fell below 50% 534 | -10/Mines | Core integrity fell below 20% 543 | -10/Mines | Destroyed by as-25461 with Assembled Blade Last Messages --------------- 00494_ EM Pulse Gun destroyed. 00499_ Ion Engine destroyed. 00500_ Assault Rifle destroyed. 00502_ as-33611 destroyed. 00507_ Destroyed Asb. Hover Unit. 00510_ as-40594 destroyed. 00513_ as-01171 destroyed. 00516_ Aluminum Leg destroyed. 00518_ Imp. Terrain Scanner destroyed. 00519_ as-43743 destroyed. 00519_ Critical hit. 00519_ Beam Cannon destroyed. 00527_ Critical hit. 00527_ Aluminum Leg destroyed. 00532_ as-22141 destroyed. 00535_ K-01 Serf collects debris. 00541_ K-01 Serf destroyed. 00542_ Extracted 19 matter. 00542_ Lgt. Assault Rifle destroyed. 00543_ Slammed into as-25461. Map ----- +----------------------------------------------------+ | ?### #######?#?#??##???????????????????????? | | ### #####???????#???????????????????????? | | ### ##??#???????????????????????????? | | ##?### ### #?#??#?##???????????????????????? | | ##?#?# ### ##??????##??????????????????????? | | # #####?# ### ##?#??###???#???????????????????? | | # ##?##?## ## ####????#??????????????????????? | | # ##?#### ##?#??#??###???????????????????? | | # #?### ##?##?#??????#?????????????????? | | # ##?# ##????##???#??????????????????? | | # ## ##?#?#?????##????????????????? | | #?## ###?#??##?#?????????????????? | | #?### ##??????????#??????????????? | | ## #???##% """ ##????#????#??#????????????? | | ?## #???### """ ##?#???#?##?#??????????????? | | ?####??#### """ #????????#?#??????????????? | | ??#???### ##?#??? ##??##???????????? | | ???????# #????? #??#????????????? | | ?#?????# #?#?## #?#??#??????????? | | ???????# ## ##?### ### ?????????? | | ??##?#### ### ## ????????? | | ????????## #?# ?????????? | | ??#?#????#### #### ## ?????????? | | #???#?#?????## ##?### % #???? ?? ??????????? | | ???????????### ##?##?##!%% ##???? ??#?????????? | | ??#????#???#?# ##??#?#?##@a###?#??? ?????#???????? | | ????????#???####?##????##%a#???###?????#?????????? | | ?????????##????##???#??# a #?##?#?????##?????????? | | ??????????#?#???####???# #????#?#?#??#?????????? | | ????????????#???##?##??# ##?#????????#?????????? | | ??????????????#?#?##??### #???#???#????????????? | | ??????????? ??? ? ???### ##??#????????????????? | | ?????????????? ??????#??# #?#?????????????????? | | ??????????### ??? ? #?#???? ????????????? | | ????????????#? #??? ? ? ?? ???????? | | ?????????????#% #### #?????????????????? | | ?????????????# ??#??# ????????????????? | | ???????????????????????## ? ?????????????? | | ??????????????????##????### #??????????????? | | ?????????????????#?????#??### ##??????????????? | | ????????????????????##???????#####???????????????? | | ????????????????????????????????????#????????????? | | ?????????????????????????????????????????????????? | | ?????????????????????????##??????????????????????? | | ??????????????????#??????????????????????????????? | | ???????????????????????????#?????????????????????? | | ?????????????????????????##????#?????????????????? | | ?????????????????????????????????????????????????? | | ?????????????????????????????????????????????????? | | ?????????????????????????????????????????????????? | +----------------------------------------------------+ Best States ------------- Heat Dissipation 25 Energy Generation 10 Energy Capacity 250 Matter Stores 300 Matter Capacity 300 Sight Range 16 Terrain Scan Range 16 Terrain Scan Density 60 Evasion (%) 40 Item Schematics ----------------- None Robot Schematics ------------------ None Fabricated ------------ Nothing Alien Tech Used ----------------- None Achievements -------------- None Challenges ------------ None Game ------ Seed TitaniumLayeredFrame Manual? 0 Play Time 00:07:14 Cumulative 42.0 hours Start 2020.02.14 @ 09:16:08 End 2020.02.14 @ 09:25:36 Sessions 1 Manual Loads 0 Difficulty Rogue Special Mode None Game No. 35 Rogue 35 Adventurer 0 Explorer 0 Win Type - Total 0 Types 0/0/0/0/0/0/0 Lore% 18 Gallery% 27 Achievement% 16 Wizard Run 0 Options --------- ASCII 0 Keyboard 1 Movement Vi Keybinds 0 Fullscreen 1 Font 18/SmallcapsGlow Map View 76x50 Tactical HUD 1 Map Filters NONE Filters NONE Steam 1 RUN: 12c68e28-42dc-4741-9ce6-f6a988fc0a52